[Event "Mistrovství Čech mládeže 2023 - HD16"]
[Site "Harrachov, Czech Republic"]
[Date "2023.10.24"]
[Round "5.20"]
[White "Langmaier, Michal"]
[Black "Bauer, Sebastian"]
[Result "1-0"]
[TimeControl "90m + 30s"]
[WhiteElo "1697"]
[BlackElo "1366"]

1. d4 {[%clk 01:30:57]} {[%emt 00:00:02]} d5 {[%clk 01:30:59]} {[%emt
00:00:02]} 2. Nf3 {[%clk 01:31:19]} {[%emt 00:00:07]} Nf6 {[%clk 01:31:09]}
{[%emt 00:00:21]} 3. Bf4 {[%clk 01:31:39]} {[%emt 00:00:10]} Bf5 {[%clk
01:31:11]} {[%emt 00:00:28]} 4. e3 {[%clk 01:30:41]} {[%emt 00:01:28]} e6
{[%clk 01:31:05]} {[%emt 00:00:36]} 5. Ne5 {[%clk 01:19:36]} {[%emt 00:11:35]}
Nbd7 {[%clk 01:24:42]} {[%emt 00:06:53]} 6. Bd3 {[%clk 01:15:52]} {[%emt
00:04:14]} Bxd3 {[%clk 01:19:41]} {[%emt 00:05:31]} 7. cxd3 {[%clk 01:12:48]}
{[%emt 00:03:34]} c5 {[%clk 01:10:44]} {[%emt 00:09:26]} 8. dxc5 {[%clk
01:10:32]} {[%emt 00:02:46]} Bxc5 {[%clk 01:08:40]} {[%emt 00:02:34]} 9. O-O
{[%clk 01:05:43]} {[%emt 00:05:20]} O-O {[%clk 01:01:31]} {[%emt 00:07:39]} 10.
d4 {[%clk 01:05:02]} {[%emt 00:01:10]} Bb6 {[%clk 00:57:51]} {[%emt 00:04:10]}
11. Nc3 {[%clk 01:03:51]} {[%emt 00:01:42]} a6 {[%clk 00:50:40]} {[%emt
00:07:41]} 12. Rc1 {[%clk 01:01:52]} {[%emt 00:02:28]} Rc8 {[%clk 00:49:01]}
{[%emt 00:02:10]} 13. Qb3 {[%clk 00:59:51]} {[%emt 00:02:30]} Nxe5 {[%clk
00:30:45]} {[%emt 00:18:46]} 14. Bxe5 {[%clk 00:58:53]} {[%emt 00:01:28]} Nd7
{[%clk 00:30:59]} {[%emt 00:00:17]} 15. Bg3 {[%clk 00:50:10]} {[%emt 00:09:12]}
Rc6 {[%clk 00:28:02]} {[%emt 00:03:27]} 16. Ne2 {[%clk 00:44:15]} {[%emt
00:06:25]} Qc8 {[%clk 00:24:13]} {[%emt 00:04:19]} 17. Rxc6 {[%clk 00:43:18]}
{[%emt 00:01:27]} Qxc6 {[%clk 00:23:17]} {[%emt 00:01:27]} 18. Rc1 {[%clk
00:43:08]} {[%emt 00:00:39]} Qb5 {[%clk 00:23:43]} {[%emt 00:00:04]} 19. Qxb5
{[%clk 00:43:06]} {[%emt 00:00:32]} axb5 {[%clk 00:24:06]} {[%emt 00:00:06]} 20.
a3 {[%clk 00:42:30]} {[%emt 00:01:06]} b4 {[%clk 00:19:21]} {[%emt 00:05:16]}
21. Bd6 {[%clk 00:41:33]} {[%emt 00:01:26]} Re8 {[%clk 00:19:07]} {[%emt
00:00:45]} 22. Bxb4 {[%clk 00:41:35]} {[%emt 00:00:28]} e5 {[%clk 00:19:05]}
{[%emt 00:00:32]} 23. dxe5 {[%clk 00:39:28]} {[%emt 00:02:36]} Nxe5 {[%clk
00:19:33]} {[%emt 00:00:02]} 24. Bc3 {[%clk 00:38:43]} {[%emt 00:01:15]} Nc4
{[%clk 00:16:03]} {[%emt 00:04:00]} 25. Rd1 {[%clk 00:38:27]} {[%emt 00:00:46]}
Rd8 {[%clk 00:12:13]} {[%emt 00:04:21]} 26. Nd4 {[%clk 00:38:14]} {[%emt
00:00:42]} Bxd4 {[%clk 00:04:33]} {[%emt 00:08:11]} 27. Rxd4 {[%clk 00:37:54]}
{[%emt 00:00:49]} f6 {[%clk 00:03:39]} {[%emt 00:01:25]} 28. e4 {[%clk
00:37:00]} {[%emt 00:01:23]} Nb6 {[%clk 00:01:13]} {[%emt 00:02:56]} 29. g3
{[%clk 00:36:54]} {[%emt 00:00:36]} Rd7 {[%clk 00:00:44]} {[%emt 00:01:00]} 30.
Rb4 {[%clk 00:31:47]} {[%emt 00:05:37]} Nc8 {[%clk 00:00:37]} {[%emt 00:00:37]}
31. exd5 {[%clk 00:32:09]} {[%emt 00:00:08]} Rxd5 {[%clk 00:00:46]} {[%emt
00:00:21]} 32. Rxb7 {[%clk 00:32:30]} {[%emt 00:00:10]} Nd6 {[%clk 00:01:10]}
{[%emt 00:00:05]} 33. Rd7 {[%clk 00:32:26]} {[%emt 00:00:33]} Rd1+ {[%clk
00:00:36]} {[%emt 00:01:05]} 34. Kg2 {[%clk 00:32:51]} {[%emt 00:00:04]} Rd3
{[%emt 00:00:37]} 35. Bb4 {[%clk 00:33:03]} {[%emt 00:00:16]} Rb3 {[%clk
00:00:40]} {[%emt 00:00:22]} 36. Rxd6 {[%clk 00:33:25]} {[%emt 00:00:08]} Rxb2
{[%clk 00:01:06]} {[%emt 00:00:04]} 37. Rd7 {[%clk 00:33:42]} {[%emt 00:00:13]}
Rb3 {[%clk 00:01:21]} {[%emt 00:00:15]} 38. Ra7 {[%clk 00:33:53]} {[%emt
00:00:19]} h6 {[%clk 00:01:35]} {[%emt 00:00:16]} 39. Bc5 {[%clk 00:34:17]}
{[%emt 00:00:06]} Rc3 {[%clk 00:01:45]} {[%emt 00:00:21]} 40. Be3 {[%clk
00:34:42]} {[%emt 00:00:04]} 1-0

[Event "Mistrovství Čech mládeže 2023 - HD16"]
[Site "Harrachov, Czech Republic"]
[Date "2023.10.25"]
[Round "6.2"]
[White "Andrle, Filip"]
[Black "Pressler, Tobias"]
[Result "1-0"]
[TimeControl "90m + 30s"]
[WhiteElo "1830"]
[BlackElo "1965"]

1. e4 {[%clk 01:30:51]} {[%emt 00:00:07]} Nf6 {[%clk 01:30:53]} {[%emt
00:00:08]} 2. e5 {[%clk 01:29:55]} {[%emt 00:01:27]} Nd5 {[%clk 01:31:18]}
{[%emt 00:00:04]} 3. c4 {[%clk 01:29:59]} {[%emt 00:00:27]} Nb6 {[%clk
01:31:43]} {[%emt 00:00:04]} 4. c5 {[%clk 01:30:22]} {[%emt 00:00:07]} Nd5
{[%clk 01:32:00]} {[%emt 00:00:13]} 5. Bc4 {[%clk 01:30:43]} {[%emt 00:00:09]}
e6 {[%clk 01:32:14]} {[%emt 00:00:16]} 6. Nc3 {[%clk 01:30:21]} {[%emt
00:00:52]} Nxc3 {[%clk 01:32:26]} {[%emt 00:00:18]} 7. bxc3 {[%clk 01:30:41]}
{[%emt 00:00:09]} Bxc5 {[%clk 01:29:19]} {[%emt 00:03:37]} 8. d4 {[%clk
01:31:05]} {[%emt 00:00:07]} Be7 {[%clk 01:27:49]} {[%emt 00:02:00]} 9. Qg4
{[%clk 01:30:35]} {[%emt 00:00:59]} g6 {[%clk 01:27:49]} {[%emt 00:00:30]} 10.
h4 {[%clk 01:23:54]} {[%emt 00:07:11]} h5 {[%clk 01:25:46]} {[%emt 00:02:33]}
11. Qg3 {[%clk 01:22:28]} {[%emt 00:01:55]} d5 {[%clk 01:22:06]} {[%emt
00:04:10]} 12. Bd3 {[%clk 01:20:37]} {[%emt 00:02:21]} c5 {[%clk 01:22:12]}
{[%emt 00:00:25]} 13. Nf3 {[%clk 01:17:18]} {[%emt 00:03:49]} Nc6 {[%clk
01:22:25]} {[%emt 00:00:17]} 14. O-O {[%clk 01:11:04]} {[%emt 00:06:44]} c4
{[%clk 01:12:16]} {[%emt 00:10:40]} 15. Bc2 {[%clk 01:09:20]} {[%emt 00:02:13]}
Qc7 {[%clk 01:10:13]} {[%emt 00:02:34]} 16. Ng5 {[%clk 01:07:02]} {[%emt
00:02:48]} Rg8 {[%clk 01:10:05]} {[%emt 00:00:38]} 17. Qf3 {[%clk 00:55:34]}
{[%emt 00:11:57]} Bxg5 {[%clk 00:58:49]} {[%emt 00:11:46]} 18. Bxg5 {[%clk
00:54:35]} {[%emt 00:01:28]} b5 {[%clk 00:58:04]} {[%emt 00:01:16]} 19. Rab1
{[%clk 00:34:21]} {[%emt 00:20:44]} Rb8 {[%clk 00:58:27]} {[%emt 00:00:07]} 20.
Rb2 {[%clk 00:32:05]} {[%emt 00:02:45]} a5 {[%clk 00:58:24]} {[%emt 00:00:32]}
21. Rfb1 {[%clk 00:32:06]} {[%emt 00:00:30]} Ba6 {[%clk 00:57:38]} {[%emt
00:01:17]} 22. a3 {[%clk 00:29:19]} {[%emt 00:03:17]} Rb7 {[%clk 00:55:03]}
{[%emt 00:03:04]} 23. Qf6 {[%clk 00:26:43]} {[%emt 00:03:06]} Qe7 {[%clk
00:52:08]} {[%emt 00:03:25]} 24. Qxe7+ {[%clk 00:26:39]} {[%emt 00:00:34]} Nxe7
{[%clk 00:52:34]} {[%emt 00:00:04]} 25. Ba4 {[%clk 00:26:42]} {[%emt 00:00:27]}
Kd7 {[%clk 00:45:40]} {[%emt 00:07:25]} 26. Bxb5+ {[%clk 00:25:53]} {[%emt
00:01:19]} Bxb5 {[%clk 00:46:04]} {[%emt 00:00:05]} 27. Bxe7 {[%clk 00:24:29]}
{[%emt 00:01:53]} Kxe7 {[%clk 00:46:24]} {[%emt 00:00:10]} 28. Rxb5 {[%clk
00:24:53]} {[%emt 00:00:07]} Rxb5 {[%clk 00:44:58]} {[%emt 00:01:57]} 29. Rxb5
{[%clk 00:25:13]} {[%emt 00:00:10]} Rd8 {[%clk 00:45:16]} {[%emt 00:00:11]} 30.
Kf1 {[%clk 00:24:49]} {[%emt 00:00:54]} Rd7 {[%clk 00:45:42]} {[%emt 00:00:04]}
31. Ke2 {[%clk 00:23:56]} {[%emt 00:01:23]} Ra7 {[%clk 00:45:09]} {[%emt
00:01:03]} 32. Ke3 {[%clk 00:23:26]} {[%emt 00:00:59]} f6 {[%clk 00:45:24]}
{[%emt 00:00:15]} 33. Kf4 {[%clk 00:22:58]} {[%emt 00:00:58]} Kf7 {[%clk
00:45:48]} {[%emt 00:00:05]} 34. a4 {[%clk 00:22:27]} {[%emt 00:01:01]} Kg7
{[%clk 00:45:31]} {[%emt 00:00:47]} 35. Rb6 {[%clk 00:22:17]} {[%emt 00:00:41]}
Kf7 {[%clk 00:45:53]} {[%emt 00:00:08]} 36. f3 {[%clk 00:22:10]} {[%emt
00:00:36]} Ke7 {[%clk 00:42:32]} {[%emt 00:03:52]} 37. g4 {[%clk 00:21:05]}
{[%emt 00:01:35]} Kf7 {[%clk 00:42:58]} {[%emt 00:00:04]} 38. exf6 {[%clk
00:19:56]} {[%emt 00:01:39]} hxg4 {[%clk 00:42:24]} {[%emt 00:01:04]} 39. fxg4
{[%clk 00:19:30]} {[%emt 00:00:55]} 1-0

[Event "Mistrovství Čech mládeže 2023 - HD16"]
[Site "Harrachov, Czech Republic"]
[Date "2023.10.25"]
[Round "6.3"]
[White "Stein, Michael"]
[Black "Kučina, Ondřej"]
[Result "1/2-1/2"]
[TimeControl "90m + 30s"]
[WhiteElo "1717"]
[BlackElo "1592"]

1. e4 {[%clk 01:30:57]} {[%emt 00:00:01]} e6 {[%clk 01:30:56]} {[%emt
00:00:04]} 2. d4 {[%clk 01:31:23]} {[%emt 00:00:04]} d5 {[%clk 01:31:17]}
{[%emt 00:00:09]} 3. Nc3 {[%clk 01:31:49]} {[%emt 00:00:06]} Bb4 {[%clk
01:30:21]} {[%emt 00:01:25]} 4. Nge2 {[%clk 01:32:13]} {[%emt 00:00:06]} dxe4
{[%clk 01:25:04]} {[%emt 00:05:47]} 5. a3 {[%clk 01:32:38]} {[%emt 00:00:06]}
Be7 {[%clk 01:25:11]} {[%emt 00:00:23]} 6. Nxe4 {[%clk 01:32:29]} {[%emt
00:00:39]} Nf6 {[%clk 01:24:36]} {[%emt 00:01:04]} 7. Nxf6+ {[%clk 01:32:49]}
{[%emt 00:00:10]} Bxf6 {[%clk 01:24:58]} {[%emt 00:00:08]} 8. Be3 {[%clk
01:33:09]} {[%emt 00:00:10]} b6 {[%clk 01:24:27]} {[%emt 00:01:02]} 9. Qd2
{[%clk 01:32:17]} {[%emt 00:01:21]} Bb7 {[%clk 01:24:04]} {[%emt 00:00:53]} 10.
O-O-O {[%clk 01:31:06]} {[%emt 00:01:41]} O-O {[%clk 01:23:57]} {[%emt
00:00:38]} 11. Rg1 {[%clk 01:30:19]} {[%emt 00:01:17]} Nd7 {[%clk 01:17:10]}
{[%emt 00:07:17]} 12. g4 {[%clk 01:27:16]} {[%emt 00:03:32]} Be7 {[%clk
01:16:30]} {[%emt 00:01:10]} 13. g5 {[%clk 01:25:14]} {[%emt 00:02:32]} c5
{[%clk 01:16:36]} {[%emt 00:00:24]} 14. h4 {[%clk 01:23:50]} {[%emt 00:01:54]}
cxd4 {[%clk 01:16:20]} {[%emt 00:00:46]} 15. Qxd4 {[%clk 01:22:13]} {[%emt
00:02:05]} Nc5 {[%clk 01:16:01]} {[%emt 00:00:51]} 16. Qe5 {[%clk 01:16:49]}
{[%emt 00:05:50]} Qb8 {[%clk 01:15:28]} {[%emt 00:01:08]} 17. Qxb8 {[%clk
01:09:18]} {[%emt 00:08:01]} Rfxb8 {[%clk 01:11:24]} {[%emt 00:04:33]} 18. b4
{[%clk 01:08:00]} {[%emt 00:01:48]} Ne4 {[%clk 01:09:37]} {[%emt 00:02:16]} 19.
Rd7 {[%clk 01:02:23]} {[%emt 00:06:05]} Kf8 {[%clk 01:04:54]} {[%emt 00:05:15]}
20. Bg2 {[%clk 00:53:51]} {[%emt 00:09:02]} Nd6 {[%clk 01:05:06]} {[%emt
00:00:18]} 21. Bxb7 {[%clk 00:47:45]} {[%emt 00:06:36]} Rxb7 {[%clk 01:05:03]}
{[%emt 00:00:33]} 22. Rxb7 {[%clk 00:48:03]} {[%emt 00:00:12]} Nxb7 {[%clk
01:05:28]} {[%emt 00:00:05]} 23. Rd1 {[%clk 00:46:59]} {[%emt 00:01:34]} Ke8
{[%clk 01:05:16]} {[%emt 00:00:42]} 24. Bf4 {[%clk 00:46:50]} {[%emt 00:00:38]}
a5 {[%clk 01:03:54]} {[%emt 00:01:53]} 25. c3 {[%clk 00:44:41]} {[%emt
00:02:39]} axb4 {[%clk 01:04:06]} {[%emt 00:00:19]} 26. axb4 {[%clk 00:44:40]}
{[%emt 00:00:31]} Ra1+ {[%clk 00:58:23]} {[%emt 00:06:13]} 27. Kd2 {[%clk
00:44:52]} {[%emt 00:00:16]} Rxd1+ {[%clk 00:58:42]} {[%emt 00:00:13]} 28. Kxd1
{[%clk 00:45:19]} {[%emt 00:00:03]} Nd6 {[%clk 00:58:40]} {[%emt 00:00:32]} 29.
Bxd6 {[%clk 00:44:23]} {[%emt 00:01:26]} Bxd6 {[%clk 00:58:31]} {[%emt
00:00:39]} 30. Kd2 {[%clk 00:44:32]} {[%emt 00:00:20]} Kd7 {[%clk 00:57:18]}
{[%emt 00:01:44]} 31. Kd3 {[%clk 00:44:22]} {[%emt 00:00:39]} e5 {[%clk
00:53:33]} {[%emt 00:04:15]} 32. Kc4 {[%clk 00:43:37]} {[%emt 00:01:14]} Kc6
{[%clk 00:23:51]} {[%emt 00:30:13]} 33. Ng3 {[%clk 00:39:26]} {[%emt 00:04:39]}
b5+ {[%clk 00:23:02]} {[%emt 00:01:21]} 34. Kd3 {[%clk 00:39:49]} {[%emt
00:00:06]} Kd5 {[%clk 00:22:46]} {[%emt 00:00:46]} 35. f3 {[%clk 00:39:36]}
{[%emt 00:00:43]} Be7 {[%clk 00:08:53]} {[%emt 00:14:23]} 36. Nf5 {[%clk
00:39:17]} {[%emt 00:00:49]} Bf8 {[%clk 00:08:32]} {[%emt 00:00:49]} 37. Ne3+
{[%clk 00:39:20]} {[%emt 00:00:27]} Ke6 {[%clk 00:08:18]} {[%emt 00:00:46]} 38.
Ke4 {[%clk 00:39:20]} {[%emt 00:00:28]} h6 {[%clk 00:04:34]} {[%emt 00:04:17]}
39. gxh6 {[%clk 00:32:08]} {[%emt 00:07:41]} gxh6 {[%clk 00:04:43]} {[%emt
00:00:20]} 40. Nc2 {[%clk 00:29:06]} {[%emt 00:03:25]} h5 {[%clk 00:03:12]}
{[%emt 00:02:08]} 41. f4 {[%clk 00:26:50]} {[%emt 00:02:46]} Be7 {[%clk
00:01:02]} {[%emt 00:02:40]} 42. fxe5 {[%clk 00:26:24]} {[%emt 00:00:56]} Bxh4
{[%clk 00:01:26]} {[%emt 00:00:06]} 43. Nd4+ {[%clk 00:26:09]} {[%emt
00:00:44]} Kd7 {[%clk 00:01:19]} {[%emt 00:00:37]} 44. Nxb5 {[%clk 00:25:30]}
{[%emt 00:01:09]} Be1 {[%clk 00:01:39]} {[%emt 00:00:09]} 45. Kf5 {[%clk
00:23:10]} {[%emt 00:02:49]} h4 {[%clk 00:01:53]} {[%emt 00:00:18]} 46. Kg4
{[%clk 00:22:21]} {[%emt 00:01:16]} Ke6 {[%clk 00:01:39]} {[%emt 00:00:45]} 47.
Nd4+ {[%clk 00:20:41]} {[%emt 00:02:10]} Kd5 {[%clk 00:01:25]} {[%emt
00:00:45]} 1/2-1/2

[Event "Mistrovství Čech mládeže 2023 - HD16"]
[Site "Harrachov, Czech Republic"]
[Date "2023.10.25"]
[Round "6.4"]
[White "Veverka, Vladimír"]
[Black "Novotný, Dominik"]
[Result "1/2-1/2"]
[TimeControl "90m + 30s"]
[WhiteElo "1849"]
[BlackElo "1929"]

1. e4 {[%clk 01:30:44]} {[%emt 00:00:15]} c6 {[%clk 01:30:52]} {[%emt
00:00:08]} 2. Nf3 {[%clk 01:31:05]} {[%emt 00:00:09]} d5 {[%clk 01:31:15]}
{[%emt 00:00:08]} 3. d3 {[%clk 01:31:29]} {[%emt 00:00:06]} Bg4 {[%clk
01:29:18]} {[%emt 00:02:27]} 4. h3 {[%clk 01:30:33]} {[%emt 00:01:26]} Bxf3
{[%clk 01:29:20]} {[%emt 00:00:28]} 5. Qxf3 {[%clk 01:30:56]} {[%emt 00:00:08]}
e6 {[%clk 01:29:34]} {[%emt 00:00:15]} 6. c3 {[%clk 01:15:27]} {[%emt
00:15:59]} Nf6 {[%clk 01:26:46]} {[%emt 00:03:18]} 7. Nd2 {[%clk 01:09:28]}
{[%emt 00:06:29]} Be7 {[%clk 01:23:22]} {[%emt 00:03:54]} 8. d4 {[%clk
01:08:36]} {[%emt 00:01:22]} O-O {[%clk 01:12:04]} {[%emt 00:11:48]} 9. Bd3
{[%clk 01:06:54]} {[%emt 00:02:12]} dxe4 {[%clk 01:09:40]} {[%emt 00:02:55]} 10.
Nxe4 {[%clk 01:05:42]} {[%emt 00:01:42]} Nbd7 {[%clk 01:08:42]} {[%emt
00:01:29]} 11. Bf4 {[%clk 01:03:08]} {[%emt 00:03:04]} Nxe4 {[%clk 01:06:57]}
{[%emt 00:02:15]} 12. Bxe4 {[%clk 01:02:36]} {[%emt 00:01:02]} Nf6 {[%clk
01:06:32]} {[%emt 00:00:55]} 13. O-O {[%clk 01:01:57]} {[%emt 00:01:09]} Nxe4
{[%clk 01:03:22]} {[%emt 00:03:40]} 14. Qxe4 {[%clk 01:02:18]} {[%emt
00:00:09]} Bd6 {[%clk 01:03:16]} {[%emt 00:00:36]} 15. Bxd6 {[%clk 01:00:05]}
{[%emt 00:02:43]} Qxd6 {[%clk 01:02:18]} {[%emt 00:01:27]} 1/2-1/2

[Event "Mistrovství Čech mládeže 2023 - HD16"]
[Site "Harrachov, Czech Republic"]
[Date "2023.10.25"]
[Round "6.5"]
[White "Večeř, Martin"]
[Black "Síleš, Jan"]
[Result "1-0"]
[TimeControl "90m + 30s"]
[WhiteElo "1569"]
[BlackElo "1839"]

1. b3 {[%clk 01:30:57]} {[%emt 00:00:02]} d6 {[%clk 01:27:50]} {[%emt
00:03:10]} 2. Bb2 {[%clk 01:30:45]} {[%emt 00:00:43]} Nd7 {[%clk 01:26:39]}
{[%emt 00:01:41]} 3. e3 {[%clk 01:30:46]} {[%emt 00:00:28]} e5 {[%clk
01:26:32]} {[%emt 00:00:37]} 4. c4 {[%clk 01:28:20]} {[%emt 00:02:56]} f5
{[%clk 01:24:21]} {[%emt 00:02:41]} 5. Bd3 {[%clk 01:24:10]} {[%emt 00:04:40]}
g6 {[%clk 01:21:19]} {[%emt 00:03:32]} 6. Ne2 {[%clk 01:22:09]} {[%emt
00:02:31]} Ngf6 {[%clk 01:21:05]} {[%emt 00:00:44]} 7. Bc2 {[%clk 01:22:07]}
{[%emt 00:00:32]} Bg7 {[%clk 01:20:24]} {[%emt 00:01:10]} 8. d4 {[%clk
01:21:39]} {[%emt 00:00:58]} Qe7 {[%clk 01:17:32]} {[%emt 00:03:22]} 9. Nbc3
{[%clk 01:20:36]} {[%emt 00:01:34]} Nf8 {[%clk 01:13:00]} {[%emt 00:05:02]} 10.
Ba3 {[%clk 01:09:16]} {[%emt 00:11:50]} f4 {[%clk 00:58:37]} {[%emt 00:14:53]}
11. dxe5 {[%clk 01:03:31]} {[%emt 00:06:15]} Qxe5 {[%clk 00:58:19]} {[%emt
00:00:48]} 12. exf4 {[%clk 01:03:12]} {[%emt 00:00:50]} Qa5 {[%clk 00:48:51]}
{[%emt 00:09:57]} 13. Bb2 {[%clk 00:57:02]} {[%emt 00:06:41]} Bd7 {[%clk
00:36:53]} {[%emt 00:12:28]} 14. O-O {[%clk 00:55:04]} {[%emt 00:02:27]} Ne6
{[%clk 00:32:49]} {[%emt 00:04:34]} 15. Re1 {[%clk 00:46:23]} {[%emt 00:09:12]}
O-O {[%clk 00:31:00]} {[%emt 00:02:18]} 16. Nd5 {[%clk 00:33:52]} {[%emt
00:13:01]} Nxd5 {[%clk 00:26:03]} {[%emt 00:05:27]} 17. Bxg7 {[%clk 00:34:13]}
{[%emt 00:00:09]} Ndxf4 {[%clk 00:16:00]} {[%emt 00:10:34]} 18. Bxf8 {[%clk
00:33:22]} {[%emt 00:01:20]} Rxf8 {[%clk 00:15:59]} {[%emt 00:00:31]} 19. Nxf4
{[%clk 00:31:30]} {[%emt 00:02:22]} Nxf4 {[%clk 00:16:21]} {[%emt 00:00:07]} 20.
Be4 {[%clk 00:28:34]} {[%emt 00:03:26]} Qg5 {[%clk 00:13:41]} {[%emt 00:03:11]}
21. Bd5+ {[%clk 00:27:01]} {[%emt 00:02:03]} Kg7 {[%clk 00:13:49]} {[%emt
00:00:22]} 22. Kh1 {[%clk 00:23:20]} {[%emt 00:04:11]} Bf5 {[%clk 00:05:20]}
{[%emt 00:08:59]} 23. Re3 {[%clk 00:16:47]} {[%emt 00:07:03]} Bg4 {[%emt
00:03:42]} 24. Qd4+ {[%clk 00:16:07]} {[%emt 00:01:08]} Kh6 {[%clk 00:02:30]}
{[%emt 00:00:10]} 25. Rg3 {[%clk 00:12:14]} {[%emt 00:04:23]} Qf5 {[%clk
00:01:11]} {[%emt 00:01:49]} 26. Rxg4 {[%clk 00:06:18]} {[%emt 00:06:26]} Qxg4
{[%clk 00:01:03]} {[%emt 00:00:39]} 27. g3 {[%clk 00:06:38]} {[%emt 00:00:10]}
Nh3 {[%clk 00:01:03]} {[%emt 00:00:30]} 28. Qe3+ {[%clk 00:05:19]} {[%emt
00:01:49]} Qg5 {[%clk 00:01:03]} {[%emt 00:00:29]} 29. f4 {[%clk 00:05:22]}
{[%emt 00:00:27]} Qf6 {[%clk 00:01:18]} {[%emt 00:00:15]} 30. Rb1 {[%clk
00:04:53]} {[%emt 00:00:59]} g5 {[%clk 00:01:06]} {[%emt 00:00:42]} 31. fxg5+
{[%clk 00:04:53]} {[%emt 00:00:30]} Qxg5 {[%clk 00:00:38]} {[%emt 00:00:59]} 32.
Qe6+ {[%clk 00:05:06]} {[%emt 00:00:16]} Kg7 {[%clk 00:00:46]} {[%emt
00:00:22]} 33. Qxh3 {[%clk 00:05:17]} {[%emt 00:00:19]} c6 {[%clk 00:00:51]}
{[%emt 00:00:25]} 34. Qd7+ {[%clk 00:04:10]} {[%emt 00:01:35]} Kh8 {[%clk
00:00:47]} {[%emt 00:00:34]} 35. Be4 {[%clk 00:04:23]} {[%emt 00:00:17]} Qh6
{[%clk 00:00:37]} {[%emt 00:00:41]} 36. Qxb7 {[%clk 00:04:12]} {[%emt
00:00:41]} d5 {[%clk 00:00:34]} {[%emt 00:00:34]} 37. cxd5 {[%clk 00:03:49]}
{[%emt 00:00:52]} cxd5 {[%clk 00:00:41]} {[%emt 00:00:23]} 38. Qxd5 {[%clk
00:04:07]} {[%emt 00:00:13]} Rg8 {[%clk 00:00:35]} {[%emt 00:00:35]} 39. Rf1
{[%clk 00:03:21]} {[%emt 00:01:16]} Rxg3 {[%clk 00:00:40]} {[%emt 00:00:26]} 40.
Qe5+ {[%clk 00:03:43]} {[%emt 00:00:08]} 1-0

[Event "Mistrovství Čech mládeže 2023 - HD16"]
[Site "Harrachov, Czech Republic"]
[Date "2023.10.25"]
[Round "6.6"]
[White "Dvořák, Jan"]
[Black "Barták, Josef"]
[Result "1-0"]
[TimeControl "90m + 30s"]
[WhiteElo "1789"]
[BlackElo "1476"]

1. e4 {[%clk 01:30:58]} {[%emt 00:00:02]} e5 {[%clk 01:30:56]} {[%emt
00:00:04]} 2. Nf3 {[%clk 01:31:22]} {[%emt 00:00:05]} Nc6 {[%clk 01:31:17]}
{[%emt 00:00:09]} 3. Bb5 {[%clk 01:31:45]} {[%emt 00:00:06]} a6 {[%clk
01:31:42]} {[%emt 00:00:06]} 4. Ba4 {[%clk 01:32:11]} {[%emt 00:00:04]} d6
{[%clk 01:32:08]} {[%emt 00:00:04]} 5. c3 {[%clk 01:31:53]} {[%emt 00:00:48]}
f5 {[%clk 01:32:20]} {[%emt 00:00:18]} 6. d3 {[%clk 01:31:09]} {[%emt
00:01:14]} Nf6 {[%clk 01:32:25]} {[%emt 00:00:25]} 7. Nbd2 {[%clk 01:30:34]}
{[%emt 00:01:05]} Be7 {[%clk 01:32:16]} {[%emt 00:00:40]} 8. O-O {[%clk
01:29:45]} {[%emt 00:01:19]} O-O {[%clk 01:28:26]} {[%emt 00:04:20]} 9. Re1
{[%clk 01:29:54]} {[%emt 00:00:20]} fxe4 {[%clk 01:26:02]} {[%emt 00:02:54]} 10.
dxe4 {[%emt 00:00:56]} Bg4 {[%emt 00:00:25]} 11. Qb3+ {[%clk 01:24:37]} {[%emt
00:04:26]} Kh8 {[%clk 01:26:25]} {[%emt 00:00:08]} 12. Qxb7 {[%clk 01:23:34]}
{[%emt 00:01:33]} Na5 {[%clk 01:24:42]} {[%emt 00:02:12]} 13. Qb4 {[%clk
01:23:44]} {[%emt 00:00:20]} c6 {[%clk 01:21:15]} {[%emt 00:03:57]} 14. Qa3
{[%clk 01:18:07]} {[%emt 00:06:08]} Bxf3 {[%clk 01:05:35]} {[%emt 00:16:09]} 15.
Nxf3 {[%clk 01:17:44]} {[%emt 00:00:53]} d5 {[%clk 00:59:32]} {[%emt 00:06:33]}
16. b4 {[%clk 01:18:09]} {[%emt 00:00:05]} Nc4 {[%clk 00:47:17]} {[%emt
00:12:45]} 17. Qb3 {[%clk 01:18:27]} {[%emt 00:00:12]} Nxe4 {[%clk 00:45:53]}
{[%emt 00:01:54]} 18. Bxc6 {[%clk 01:13:58]} {[%emt 00:04:59]} Rc8 {[%clk
00:42:54]} {[%emt 00:03:28]} 19. Rxe4 {[%clk 00:52:40]} {[%emt 00:21:49]} dxe4
{[%clk 00:30:11]} {[%emt 00:13:12]} 20. Bxe4 {[%clk 00:52:59]} {[%emt
00:00:10]} Qd6 {[%clk 00:25:50]} {[%emt 00:04:52]} 21. Qc2 {[%clk 00:45:50]}
{[%emt 00:07:39]} Rcd8 {[%clk 00:22:08]} {[%emt 00:04:13]} 22. Be3 {[%clk
00:35:41]} {[%emt 00:10:38]} g6 {[%clk 00:17:21]} {[%emt 00:05:18]} 23. Bc5
{[%clk 00:35:30]} {[%emt 00:00:40]} Qc7 {[%clk 00:15:58]} {[%emt 00:01:54]} 24.
Bxe7 {[%clk 00:34:34]} {[%emt 00:01:26]} Qxe7 {[%clk 00:16:23]} {[%emt
00:00:06]} 25. Qe2 {[%clk 00:32:36]} {[%emt 00:02:27]} Qe6 {[%clk 00:13:44]}
{[%emt 00:03:10]} 26. Bd3 {[%clk 00:31:42]} {[%emt 00:01:23]} Rc8 {[%clk
00:07:46]} {[%emt 00:06:29]} 27. Ng5 {[%clk 00:31:54]} {[%emt 00:00:17]} Qf6
{[%clk 00:03:47]} {[%emt 00:04:30]} 28. Ne4 {[%clk 00:31:50]} {[%emt 00:00:34]}
Qf7 {[%clk 00:03:02]} {[%emt 00:01:15]} 29. Nc5 {[%clk 00:31:25]} {[%emt
00:00:54]} Nb6 {[%clk 00:03:00]} {[%emt 00:00:33]} 30. Bxa6 {[%clk 00:30:19]}
{[%emt 00:01:36]} Rce8 {[%clk 00:03:15]} {[%emt 00:00:15]} 31. a4 {[%clk
00:26:56]} {[%emt 00:03:53]} Nd5 {[%clk 00:03:08]} {[%emt 00:00:37]} 32. Ne4
{[%clk 00:26:12]} {[%emt 00:01:14]} Qc7 {[%clk 00:02:35]} {[%emt 00:01:04]} 33.
Qb2 {[%clk 00:15:10]} {[%emt 00:11:31]} Rf4 {[%clk 00:02:25]} {[%emt 00:00:40]}
34. Nc5 {[%clk 00:15:12]} {[%emt 00:00:28]} Qb6 {[%clk 00:02:29]} {[%emt
00:00:26]} 35. a5 {[%clk 00:14:59]} {[%emt 00:00:42]} Qf6 {[%clk 00:02:02]}
{[%emt 00:00:57]} 36. Rd1 {[%clk 00:12:57]} {[%emt 00:02:32]} Nc7 {[%clk
00:01:26]} {[%emt 00:01:07]} 37. Bb7 {[%clk 00:11:12]} {[%emt 00:02:14]} Rd8
{[%clk 00:01:33]} {[%emt 00:00:24]} 38. Rxd8+ {[%clk 00:11:09]} {[%emt
00:00:33]} Qxd8 {[%clk 00:01:58]} {[%emt 00:00:05]} 39. Qe2 {[%clk 00:11:06]}
{[%emt 00:00:28]} Nb5 {[%clk 00:01:46]} {[%emt 00:00:47]} 40. Qxb5 {[%clk
00:10:31]} {[%emt 00:01:05]} 1-0